bitfinex-derivatives/quotes_SOLF0:USTF0_20240815
["timestamp","ask_amount","ask_price","bid_price","bid_amount"]
[1723750825906,3.5898,139.27,139.25,0.04908323]
[1723750826109,0.05150346,139.29,139.25,0.04908323]
[1723750827615,0.05150346,139.29,139.26,3.5897]
[1723750827916,0.05150346,139.29,139.25,0.04908323]
[1723750828718,3.5895,139.28,139.25,0.04908323]
[1723750829115,0.05150346,139.29,139.25,0.04908323]
[1723750829822,3.5894,139.28,139.25,0.04908323]
[1723750830025,0.05150346,139.29,139.25,0.04908323]
[1723750830411,0.05150346,139.29,139.25,31.11908323]
[1723750830818,0.05150346,139.29,139.28,34.6593]
[1723750831223,1.0,139.3,139.28,38.77]
[1723750831417,1.0,139.33,139.31,3.5884]
[1723750831825,1.0,139.33,139.3,31.07]
[1723750832025,1.0,139.33,139.31,3.5884]
[1723750832222,1.0,139.33,139.3,31.07]
[1723750832429,1.05213315,139.33,139.31,0.05044361]
[1723750834026,32.12213315,139.33,139.22,31.07]
[1723750834320,1.3592,139.32,139.24,3.5902]
[1723750834527,1.3592,139.32,139.22,7.7]
[1723750834916,2.7564,139.32,139.22,7.7]
[1723750835118,31.07,139.31,139.22,7.7]
[1723750835518,0.05251545,139.28,139.26,0.04613935]
[1723750835931,0.05251545,139.28,139.19,1.3992]
[1723750835932,31.12251545,139.28,139.1,3.51035602]
[1723750836123,31.07,139.26,139.17,7.7]
[1723750836517,3.5909,139.23,139.18,3.5918]
[1723750836923,1.0,139.33,139.22,31.07]
[1723750837431,0.05142791,139.26,139.24,0.05335511]
[1723750837630,3.589,139.3,139.24,0.05335511]
[1723750837823,0.05108659,139.26,139.2,31.07]
[1723750838027,0.05108659,139.26,139.25,3.5901]
[1723750838935,0.05108659,139.26,139.25,34.6601]
[1723750839131,1.0,139.33,139.29,3.589]
[1723750839426,1.0,139.33,139.23,10.3583]
[1723750839427,1.0,139.33,139.28,31.07]
[1723750839724,1.0,139.33,139.32,3.5883]
[1723750839927,1.0,139.33,139.29,3.63207751]
[1723750840323,1.0,139.33,139.28,31.07]
[1723750840524,0.05005205,139.32,139.3,0.04755652]
[1723750840931,3.63835205,139.32,139.3,0.04755652]
[1723750841231,0.05005205,139.32,139.3,0.04755652]
[1723750841435,6.25875205,139.32,139.3,0.04755652]
[1723750841838,3.5885,139.31,139.3,0.04755652]
[1723750842532,33.74035205,139.32,139.23,1.2892]
[1723750842835,33.6903,139.32,139.24,3.5902]
[1723750843034,2.6203,139.32,139.23,1.2892]
[1723750843430,2.6203,139.32,139.26,3.5897]
[1723750843632,2.6203,139.32,139.23,1.2892]
[1723750843941,0.04818968,139.29,139.26,0.05248563]
[1723750844732,3.5896,139.27,139.26,0.05248563]
[1723750845032,0.04818968,139.29,139.26,0.05248563]
[1723750845238,3.5895,139.28,139.26,0.05248563]
[1723750845542,0.04818968,139.29,139.26,0.05248563]
[1723750845926,3.5896,139.28,139.26,0.05248563]
[1723750846127,0.04818968,139.29,139.26,0.05248563]
[1723750846931,3.5895,139.28,139.26,0.05248563]
[1723750847325,0.04818968,139.29,139.26,0.05248563]
[1723750847828,0.04818968,139.29,139.27,3.57666204]
[1723750848028,0.04818968,139.29,139.28,3.5893]
[1723750848240,0.04818968,139.29,139.28,4.9654]
[1723750848827,1.0,139.33,139.31,3.5883]
[1723750849035,1.0,139.33,139.28,1.3761]
[1723750849541,4.588,139.33,139.28,1.3761]
[1723750849837,1.0,139.33,139.28,4.9653]
[1723750850035,0.05117879,139.32,139.29,0.04788003]
[1723750851136,3.5896,139.27,139.21,8.9839]
[1723750851333,32.3777,139.32,139.21,8.9839]
[1723750851529,32.3777,139.32,139.23,3.5906]
[1723750851731,3.5898,139.27,139.21,8.9839]
[1723750851935,31.07,139.3,139.17,31.07]
[1723750852129,31.07,139.3,139.14,31.07]
[1723750852130,31.07,139.28,139.16,7.7]
[1723750852336,31.07,139.28,139.22,0.05519123]
[1723750852530,0.04673708,139.25,139.22,0.05519123]
[1723750852733,3.63703708,139.25,139.22,0.05519123]
[1723750853136,0.04673708,139.25,139.22,3.64589123]
[1723750853538,0.04673708,139.25,139.22,0.05519123]
[1723750854039,3.5906,139.23,139.22,0.05519123]
[1723750856442,32.42193708,139.25,139.15,1.3754]
[1723750856733,32.42193708,139.25,139.11,31.07]
[1723750856734,31.07,139.23,139.11,31.07]
[1723750857147,32.4646,139.23,139.11,31.07]
[1723750857530,3.5923,139.17,139.12,3.5933]
[1723750857838,0.05153614,139.18,139.16,0.047651]
[1723750858034,3.5923,139.17,139.12,3.5934]
[1723750858240,3.57892219,139.19,139.16,0.050746]
[1723750858531,32.4646,139.23,139.1,1.3748]
[1723750858737,0.05333396,139.19,139.16,0.04932152]
[1723750858940,3.6333337,139.19,139.16,0.04932152]
[1723750859233,3.5931,139.14,139.09,35.9281]
[1723750859434,3.5931,139.14,139.09,32.334]
[1723750859637,38.77,139.18,139.07,32.4115]
[1723750859842,1.2999,139.17,139.07,32.4115]
[1723750860145,1.2999,139.17,139.07,31.07]
[1723750860344,1.2999,139.17,139.04,33.7993]
[1723750860546,0.04929581,139.13,139.11,0.04536237]
[1723750861041,1.3292,139.15,139.04,1.3878]
[1723750861233,1.3292,139.15,139.04,4.9831]
[1723750861438,1.3292,139.15,139.04,32.4578]
[1723750861943,31.07,139.13,139.04,1.3878]
[1723750862147,7.7,139.12,139.04,1.3878]
[1723750862445,31.12355242,139.11,139.08,0.05348806]
[1723750862634,3.5954,139.05,139.0,4.938]
[1723750863847,31.07,139.11,138.99,32.3604]
[1723750864036,0.04609174,139.04,139.01,0.05161752]
[1723750864354,3.5958,139.03,139.01,0.05161752]
[1723750864540,3.61684104,139.05,138.99,1.2904]
[1723750864843,3.5959,139.03,139.01,0.04968831]
[1723750865148,0.04772119,139.03,139.01,0.04968831]
[1723750865334,3.5971,138.98,138.87,7.7]
[1723750865537,31.07,139.01,138.92,3.5984]
[1723750866050,31.07,139.01,138.9,31.07]
[1723750866542,3.5975,138.97,138.92,3.5985]
[1723750866735,0.04654848,138.97,138.94,0.05429541]
[1723750867836,225.30291715,139.09,138.95,31.07]
[1723750868037,9.0972,139.08,138.97,31.07]
[1723750868247,3.5961,139.02,138.97,3.5973]
[1723750868651,9.0972,139.08,138.96,1.377]
[1723750869039,0.05110605,139.03,139.01,0.049676]
[1723750869447,3.596,139.02,139.01,0.049676]
[1723750870153,7.25282852,139.02,139.01,0.049676]
[1723750870340,3.596,139.02,139.01,0.049676]
[1723750870846,7.1531982,139.02,139.01,0.049676]
[1723750871554,7.1531982,139.02,138.9,7.7]
[1723750871555,34.6271982,139.02,138.9,38.77]
[1723750871854,42.3271982,139.02,138.9,38.77]
[1723750872152,1.3356,139.01,138.9,7.7]
[1723750872345,31.07,138.99,138.9,7.7]
[1723750872553,31.07,138.99,138.89,2.6244]
[1723750872951,0.05020191,138.96,138.93,0.05016886]
[1723750874140,3.5981,138.94,138.93,0.05016886]
[1723750875649,3.599,138.91,138.86,7.7]
[1723750875950,3.599,138.91,138.85,5.01565791]
[1723750876147,3.5987,138.92,138.86,3.6]
[1723750876353,7.7,138.96,138.85,5.01565791]
[1723750876554,1.3154,138.98,138.89,31.07]
[1723750876852,32.4056,139.01,138.9,1.3655]
[1723750877047,33.8016,139.01,138.9,1.3655]
[1723750877247,0.04678541,138.95,138.9,1.3655]
[1723750877552,0.04678541,138.95,138.93,31.07]
[1723750877848,3.5967,139.0,138.94,1.3741]
[1723750878055,31.07,139.04,138.94,9.0741]
[1723750878450,31.07,139.02,138.94,1.3741]
[1723750878752,34.72631272,139.02,138.94,1.3741]
[1723750879050,34.72631272,139.02,138.91,32.3493]
[1723750879051,3.5972,138.98,138.97,0.05396847]
[1723750879253,0.05325447,138.99,138.97,0.05396847]
[1723750879456,3.5971,138.98,138.97,0.05396847]
[1723750879754,0.05325447,138.99,138.97,0.05396847]
[1723750880151,3.5971,138.98,138.97,0.05396847]
[1723750880348,0.05325447,138.99,138.97,0.05396847]
[1723750880747,3.5971,138.98,138.97,0.05396847]
[1723750881251,3.5981,138.95,138.91,1.3944]
[1723750881448,3.5981,138.95,138.86,1.3442]
[1723750881449,3.528981,138.95,138.86,1.3442]
[1723750881652,31.07,138.97,138.86,10.4386]
[1723750881953,31.07,138.95,138.86,10.4386]
[1723750882149,34.73351018,138.95,138.86,1.3944]
[1723750882555,3.5989,138.91,138.86,1.3944]
[1723750882756,0.05446997,138.92,138.86,1.3944]
[1723750883150,3.5993,138.9,138.86,1.3944]
[1723750884855,3.5993,138.9,138.85,3.6002]
[1723750885359,3.5989,138.91,138.86,3.6001]
[1723750885660,7.7,138.95,138.84,31.07]
[1723750885959,0.05180491,138.89,138.87,31.07]
[1723750886359,32.4546,138.99,138.88,1.3839]
[1723750886560,3.598,138.95,138.9,3.599]
[1723750886853,32.4546,138.99,138.88,1.3839]
[1723750887159,3.5982,138.94,138.89,3.5992]
[1723750887359,3.543358,138.95,138.88,1.3839]
[1723750887562,0.04623006,138.95,138.92,0.05107874]
[1723750887857,3.72888911,138.95,138.92,0.05107874]
[1723750888058,3.5984,138.93,138.92,0.05107874]
[1723750890959,62.14,138.93,138.66,46.8688]
[1723750891161,31.07,138.88,138.79,2.7197]
[1723750891460,31.07,138.88,138.8,3.51549546]
[1723750891763,31.07,138.88,138.79,2.7197]
[1723750892062,0.04711478,138.85,138.79,2.7197]
[1723750892454,3.64771478,138.85,138.79,2.7197]
[1723750892655,0.04711478,138.85,138.79,2.7197]
[1723750893755,3.64771478,138.85,138.79,2.7197]
[1723750894058,0.04711478,138.85,138.79,2.7197]
[1723750894367,3.6011,138.83,138.79,6.3217]
[1723750894559,3.6011,138.83,138.79,2.7197]
[1723750894758,3.6011,138.83,138.79,6.3216]
[1723750895559,0.04711478,138.85,138.79,2.7197]
[1723750895754,3.6014,138.82,138.79,2.7197]
[1723750895953,0.04711478,138.85,138.79,1.3702]
[1723750896162,31.07,138.84,138.76,3.6026]
[1723750896360,0.04665646,138.83,138.76,3.6026]
[1723750896662,0.04665646,138.83,138.75,1.2737]
[1723750896862,3.6016,138.81,138.77,3.6025]
[1723750897658,0.04665646,138.83,138.75,1.2737]
[1723750897965,38.77,138.84,138.75,1.2737]
[1723750898260,3.6027,138.77,138.74,1.2631]
[1723750898660,0.04571046,138.77,138.74,1.2631]
[1723750900364,3.64841046,138.77,138.73,3.6034]
[1723750900570,3.64841046,138.77,138.71,3.55239007]
[1723750900571,3.64841046,138.77,138.71,4.82349007]
[1723750901064,0.04571046,138.77,138.71,4.82349007]
[1723750901562,0.04571046,138.77,138.73,3.6034]
[1723750901769,3.64841046,138.77,138.73,3.6034]
[1723750901962,0.04571046,138.77,138.73,25.95]
[1723750902160,3.6016,138.81,138.75,25.95]
[1723750902861,3.6016,138.81,138.76,1.2783]
[1723750903061,25.95,138.85,138.76,1.2783]
[1723750903265,8.969,138.87,138.77,25.95]
[1723750903460,0.05026031,138.82,138.81,3.6015]
[1723750903864,31.12,138.85,138.76,8.9783]
[1723750904067,31.12,138.83,138.76,7.7]
[1723750904360,31.12,138.81,138.8,0.04641344]
[1723750904573,34.7215,138.81,138.8,0.04641344]
[1723750904754,34.76604971,138.81,138.75,3.6029]
[1723750904958,3.64604971,138.81,138.79,0.05311543]
[1723750905162,7.24764971,138.81,138.77,3.6024]
[1723750905357,7.29352377,138.81,138.79,0.04801231]
[1723750905661,0.04587406,138.81,138.79,0.04801231]
[1723750907168,0.04587406,138.81,138.8,3.6017]
[1723750907375,0.04587406,138.81,138.79,0.04801231]
[1723750908266,0.04587406,138.81,138.79,3.64981231]
[1723750909273,0.04587406,138.81,138.79,0.04801231]
[1723750909766,31.16587406,138.81,138.79,0.04801231]
[1723750910168,34.83239016,138.81,138.79,0.04801231]
[1723750910372,31.16587406,138.81,138.79,0.04801231]
[1723750910763,3.6017,138.8,138.79,0.04801231]
[1723750911170,34.85400027,138.81,138.71,1.2711]
[1723750911473,3.6024,138.78,138.72,3.6036]
[1723750911770,3.6035,138.74,138.7,1.406]
[1723750912164,31.12,138.76,138.7,1.406]
[1723750912364,0.04951858,138.73,138.71,3.6039]
[1723750912970,0.04951858,138.73,138.72,3.6038]
[1723750913259,2.5925,138.82,138.7,1.406]
[1723750913260,31.12,138.81,138.7,1.406]
[1723750913573,3.6023,138.78,138.73,3.6034]
[1723750914168,3.6023,138.78,138.74,0.05369597]
[1723750914366,0.0498874,138.77,138.74,0.05369597]
[1723750915170,0.0498874,138.77,138.75,3.6029]
[1723750915469,0.0498874,138.77,138.74,0.05369597]
[1723750915869,0.0498874,138.77,138.74,3.65679597]
[1723750916074,0.0498874,138.77,138.74,0.05369597]
[1723750916270,3.6525874,138.77,138.74,3.65699597]
[1723750916970,0.0498874,138.77,138.74,3.65699597]
[1723750917268,0.0498874,138.77,138.74,0.05369597]
[1723750917473,0.0498874,138.77,138.75,3.67782284]
[1723750917666,0.0498874,138.77,138.75,5.07202284]
[1723750917867,0.0498874,138.77,138.76,3.6028]
[1723750918070,3.6019,138.8,138.75,5.07202284]
[1723750918376,31.12,138.84,138.75,1.3942]
[1723750918973,31.12,138.84,138.75,4.997]
[1723750919270,31.12,138.79,138.78,0.04631668]
[1723750919470,34.71361667,138.79,138.71,3.604]
[1723750919676,31.12,138.79,138.7,1.406]
[1723750919870,3.6027,138.77,138.72,3.6037]
[1723750920565,0.0461012,138.76,138.73,0.05099234]
[1723750920771,0.0461012,138.76,138.73,3.65449234]
[1723750920974,0.0461012,138.76,138.73,0.05099234]
[1723750921279,0.0461012,138.76,138.74,3.6031]
[1723750921464,0.0461012,138.76,138.73,0.05099234]
[1723750922269,0.0461012,138.76,138.74,3.6032]
[1723750922583,3.6031,138.75,138.73,0.05099234]
[1723750922778,0.0461012,138.76,138.73,0.05099234]
[1723750923284,0.0461012,138.76,138.74,3.6031]
[1723750923469,0.0461012,138.76,138.73,0.05099234]
[1723750923875,0.0461012,138.76,138.75,3.603]
[1723750924074,0.0461012,138.76,138.73,0.05099234]
[1723750924269,0.0461012,138.76,138.73,3.65439234]
[1723750924873,0.0461012,138.76,138.75,3.603]
[1723750925275,0.0461012,138.76,138.73,0.05099234]
[1723750925276,3.6489012,138.76,138.73,0.05099234]
[1723750925471,0.0461012,138.76,138.73,0.05099234]
[1723750926087,0.0461012,138.76,138.73,3.65449234]
[1723750926281,0.0461012,138.76,138.73,0.05099234]
[1723750928070,0.0461012,138.76,138.73,3.65429234]
[1723750928277,0.0461012,138.76,138.73,0.05099234]
[1723750929183,3.6490012,138.76,138.73,0.05099234]
[1723750929378,0.0461012,138.76,138.73,0.05099234]
[1723750930085,51.9,138.74,138.58,36.52]
[1723750930278,51.9,138.74,138.62,3.6062]
[1723750930279,3.6055,138.66,138.62,3.6062]
[1723750930681,25.95,138.67,138.6,4.94384237]
[1723750930982,25.95,138.65,138.54,25.95]
[1723750931188,25.95,138.65,138.55,1.3936]
[1723750931377,26.00117885,138.65,138.55,1.3936]
[1723750931773,25.95,138.65,138.55,1.3936]
[1723750931974,34.82766421,138.66,138.6,3.6069]
[1723750932188,0.0515281,138.61,138.55,1.3936]
[1723750932382,3.6074,138.59,138.55,1.3936]
[1723750932584,3.66016293,138.59,138.55,1.3936]
[1723750932776,0.05276293,138.59,138.55,1.3936]
[1723750932979,3.6077,138.58,138.55,1.3936]
[1723750933180,0.05276293,138.59,138.55,1.3936]
[1723750934996,7.7,138.68,138.55,1.3936]
[1723750934997,7.7,138.68,138.57,31.16]
[1723750935293,9.0367,138.68,138.57,31.16]
[1723750935485,31.16,138.67,138.57,31.16]
[1723750936086,0.047867,138.63,138.61,0.05094845]
[1723750936287,3.6065,138.62,138.61,0.05094845]
[1723750936889,34.7665,138.62,138.61,0.05094845]
[1723750937196,3.6065,138.62,138.61,0.05094845]
[1723750937391,31.16,138.62,138.52,3.52775135]
[1723750937692,31.16,138.62,138.54,3.6084]
[1723750937894,31.16,138.62,138.52,3.66908348]
[1723750938091,31.16,138.64,138.52,31.16]
[1723750938295,31.16,138.64,138.58,3.6073]
[1723750938593,31.16,138.64,138.54,31.16]
[1723750938594,34.74648221,138.64,138.54,3.66800137]
[1723750938789,34.74648221,138.64,138.56,3.6078]
[1723750939097,31.16,138.62,138.52,31.16]
[1723750939294,0.05131048,138.59,138.52,31.16]
[1723750939794,0.05131048,138.59,138.55,3.608]
[1723750939995,3.65871048,138.59,138.55,3.608]
[1723750940190,0.05131048,138.59,138.55,3.608]
[1723750940495,3.65861048,138.59,138.53,1.3736]
[1723750940693,0.05131048,138.59,138.53,1.3736]
[1723750940889,0.05131048,138.59,138.58,3.6075]
[1723750942295,0.05131048,138.59,138.57,3.6076]
[1723750942501,0.05131048,138.59,138.53,1.3736]
[1723750943001,0.05131048,138.59,138.54,3.6083]
[1723750943187,0.05131048,138.59,138.53,1.3736]
[1723750944891,0.05131048,138.59,138.54,31.16]
[1723750945294,0.05131048,138.59,138.58,3.6075]
[1723750945488,0.05131048,138.59,138.54,31.16]
[1723750946303,0.05131048,138.59,138.53,1.3736]
[1723750946504,0.05131048,138.59,138.57,3.6076]
[1723750947405,0.05131048,138.59,138.58,3.6075]
[1723750948302,0.05131048,138.59,138.53,1.3736]
[1723750948696,3.65861048,138.59,138.53,1.3736]
[1723750948896,0.05131048,138.59,138.53,1.3736]
[1723750949506,0.05131048,138.59,138.54,31.16]
[1723750950004,1.3367,138.68,138.58,31.16]
[1723750950203,31.16,138.74,138.61,31.16]
[1723750950398,1.0,138.75,138.63,31.16]
[1723750950399,3.6041,138.71,138.63,31.16]
[1723750950709,1.0,138.75,138.63,34.69666087]
[1723750950895,1.0,138.75,138.63,3.53666087]
[1723750951204,7.2026,138.82,138.62,1.2871]
[1723750951205,31.16,138.78,138.68,0.05231364]
[1723750951406,0.05140276,138.7,138.69,11.2846]
[1723750951598,0.05140276,138.7,138.68,1.45941364]
[1723750951798,31.16,138.76,138.68,1.4071]
[1723750952000,1.3673,138.77,138.69,3.62068676]
[1723750952001,25.93,138.75,138.69,3.62068676]
[1723750952205,0.05403635,138.7,138.68,27.38370211]
[1723750952394,3.6027,138.77,138.72,3.6037]
[1723750952598,3.6027,138.77,138.73,3.59796732]
[1723750952796,25.93,138.77,138.7,1.2871]
[1723750953002,3.6034,138.74,138.7,7.68]
[1723750953198,25.93,138.79,138.7,7.68]
[1723750953402,3.6016,138.81,138.74,25.93]
[1723750953599,7.196,138.95,138.7,7.68]
[1723750953600,25.93,138.86,138.76,25.93]
[1723750953798,25.93,138.88,138.77,7.68]
[1723750954107,31.11,138.89,138.77,40.0829]
[1723750954301,31.11,138.91,138.79,31.11]
[1723750954506,31.11,138.93,138.84,3.6005]
[1723750955011,0.05431107,138.86,138.83,11.23680979]
[1723750955209,31.11,138.93,138.83,11.23680979]
[1723750955602,31.11,138.93,138.85,3.6002]
[1723750955904,32.45,139.01,138.83,11.23680979]
[1723750955905,1.34,139.01,138.88,31.11]
[1723750956212,31.11,139.01,138.9,31.11]
[1723750956405,31.11,139.01,138.9,3.66457006]
[1723750956600,31.11,139.01,138.89,8.9745]
[1723750956601,0.05250264,138.96,138.89,1.2945]
[1723750956807,0.05250264,138.96,138.9,7.68]
[1723750957005,3.65030264,138.96,138.94,0.04759008]
[1723750957312,0.05250264,138.96,138.94,0.04759008]
[1723750957811,0.05250264,138.96,138.89,1.2945]
[1723750958205,0.05250264,138.96,138.94,0.04707808]
[1723750958403,0.05250264,138.96,138.89,1.2945]
[1723750958610,31.11,138.95,138.94,0.05347223]
[1723750958805,31.11,138.95,138.88,7.68]
[1723750959012,3.5986,138.93,138.88,11.2796]
[1723750959211,31.11,138.95,138.88,11.2796]
[1723750959713,31.11,138.97,138.88,7.68]
[1723750959913,0.04759951,138.93,138.91,31.11]
[1723750960109,3.58161487,139.03,138.92,3.65216019]
[1723750960304,3.5971,138.98,138.92,3.65216019]
[1723750960507,31.11,138.99,138.88,38.79]
[1723750960711,3.5984,138.93,138.89,7.68]
[1723750960917,31.11,138.97,138.89,7.68]
[1723750961206,7.68,139.02,138.89,7.68]
[1723750961405,1.3581,139.04,138.94,3.5979]
[1723750961610,31.11,139.03,138.93,3.53158528]
[1723750961816,0.05537787,138.97,138.93,3.53158528]
[1723750962007,0.05537787,138.97,138.96,3.5976]
[1723750962213,34.67073921,139.06,138.97,0.053701]
[1723750962614,31.11,139.03,138.95,11.2778]
[1723750962817,31.16297189,139.03,139.0,0.05306473]
[1723750963620,3.5965,139.01,139.0,0.05306473]
[1723750963822,31.16297189,139.03,139.0,0.05306473]
[1723750964819,3.5963,139.01,139.0,0.05306473]
[1723750965021,31.16297189,139.03,139.0,0.05306473]
[1723750965425,3.5963,139.01,139.0,0.05306473]
[1723750965626,31.11,139.01,138.93,3.68125841]
[1723750965818,31.11,139.01,138.92,7.66]
[1723750966018,3.5971,138.98,138.92,7.66]
[1723750966218,3.5971,138.98,138.93,3.60571221]
[1723750966516,34.707,138.99,138.93,7.20411221]
[1723750966723,0.04937055,138.97,138.94,0.05175177]
[1723750968227,3.64677055,138.97,138.94,0.05175177]
[1723750968420,0.04937055,138.97,138.94,0.05175177]
[1723750968725,3.5978,138.96,138.94,0.05175177]
[1723750968920,0.04937055,138.97,138.94,0.05175177]
[1723750969931,3.5978,138.96,138.94,0.05175177]
[1723750970232,0.04937055,138.97,138.94,0.05175177]
[1723750970929,3.5978,138.95,138.94,0.05175177]
[1723750971128,0.04937055,138.97,138.94,0.05175177]
[1723750971519,3.64677055,138.97,138.94,0.05175177]
[1723750972031,0.04937055,138.97,138.94,0.05175177]
[1723750973134,31.11,138.96,138.94,0.05175177]
[1723750973324,3.5978,138.95,138.94,0.05175177]
[1723750973626,31.11,138.96,138.87,12.6613]
[1723750974018,31.11,138.93,138.85,4.9973]
[1723750974329,31.11,138.93,138.84,1.3761]
[1723750974330,31.11,138.91,138.84,1.3761]
[1723750974524,31.11,138.91,138.82,7.66]
[1723750974728,31.11,138.93,138.82,7.66]
[1723750974729,38.77,138.93,138.83,7.21995938]
[1723750974928,0.04622738,138.89,138.86,0.04763945]
[1723750977427,0.04622738,138.89,138.86,3.64763945]
[1723750979137,0.04622738,138.89,138.86,0.04763945]
[1723750979933,3.5999,138.87,138.86,0.04763945]
[1723750980230,0.04622738,138.89,138.86,0.04763945]
[1723750981725,25.91,138.97,138.89,3.5992]
[1723750981927,3.598,138.95,138.9,3.63740712]
[1723750982127,9.0379,138.98,138.9,3.63740712]
[1723750982335,36.71344607,139.08,138.92,25.91]
[1723750982336,25.91,139.01,138.92,25.91]
[1723750982533,37.4429,139.06,138.94,25.91]
[1723750982834,0.04880653,139.01,138.99,0.04641682]
[1723750983335,3.5962,139.02,138.99,0.04641682]
[1723750983530,0.05082967,139.01,138.99,0.04641682]
[1723750983732,3.64712967,139.01,138.99,0.04641682]
[1723750984229,0.05082967,139.01,138.99,0.04641682]
[1723750986737,27.2788,139.11,138.99,0.04641682]
[1723750986943,28.7134,139.11,139.0,25.91]
[1723750987134,73.14411807,139.09,139.04,3.5955]
[1723750987331,3.5943,139.09,139.04,3.5955]
[1723750988038,25.91,139.13,139.03,3.66356626]
[1723750988039,25.91,139.13,139.03,29.57356626]
[1723750988338,25.91,139.13,139.01,7.66]
[1723750988339,0.0541624,139.08,139.07,25.91]
[1723750988640,2.8034,139.16,139.07,7.66]
[1723750989033,3.5932,139.13,139.08,3.5943]
[1723750989528,25.91,139.13,139.04,3.5954]
[1723750989734,25.91,139.11,139.02,7.64]
[1723750989934,31.0959099,139.12,139.09,0.05467371]
[1723750990235,3.5944,139.09,139.04,3.5954]
[1723750990435,31.05,139.12,139.02,7.64]
[1723750990831,31.09987927,139.12,139.09,0.04885074]
[1723750991333,31.09987927,139.12,139.02,7.64]
[1723750991334,3.5949,139.07,139.02,7.64]
[1723750991537,31.05,139.09,139.01,3.52795855]
[1723750991727,31.05,139.09,139.0,7.64]
[1723750991931,3.5948,139.07,139.02,3.5959]
[1723750992134,3.5948,139.07,139.02,7.22529978]
[1723750992636,31.05,139.09,139.0,7.64]
[1723750992830,3.56326693,139.11,138.97,31.05]
[1723750992831,0.05550595,139.06,139.03,0.05071055]
[1723750993251,3.5955,139.04,139.03,0.05071055]
[1723750994342,0.05550595,139.06,139.03,0.05071055]
[1723750994737,0.05550595,139.06,138.95,2.7505]
[1723750994738,31.05,139.05,138.95,6.3483]
[1723750994936,31.05,139.02,138.95,1.375]
[1723750995439,3.5967,139.0,138.95,4.9727]
[1723750995736,31.05,139.02,138.95,1.375]
[1723750995939,31.05,139.02,138.96,0.0501395]
[1723750996142,0.04851476,138.99,138.96,0.0501395]
[1723750997645,0.04851476,138.99,138.96,1.3907395]
[1723750998142,0.04851476,138.99,138.96,0.0501395]
[1723750998645,0.04851476,138.99,138.98,3.5971]
[1723751000332,0.04851476,138.99,138.96,2.7050395]
[1723751000536,0.04851476,138.99,138.96,1.4144395]
[1723751000942,0.04851476,138.99,138.96,5.0120395]
[1723751001445,0.04851476,138.99,138.96,1.4144395]
[1723751002044,0.04851476,138.99,138.97,3.5973]
[1723751002242,1.396,139.08,138.97,38.69]
[1723751002542,31.05,139.16,139.02,31.05]
[1723751002738,1.3999,139.14,139.03,8.9738]
[1723751002940,1.3999,139.14,139.03,10.2871]
[1723751003140,31.05,139.13,139.03,10.2871]
[1723751003339,31.05,139.11,139.03,8.9738]
[1723751003536,31.05,139.13,139.07,0.04814717]
[1723751003537,0.04680234,139.09,139.07,0.04814717]
[1723751003848,3.64130234,139.09,139.07,0.04814717]
[1723751004039,0.04680234,139.09,139.07,0.04814717]
[1723751004443,3.64110234,139.09,139.07,0.04814717]
[1723751004650,0.04680234,139.09,139.07,0.04814717]
[1723751005150,3.5945,139.08,139.07,0.04814717]
[1723751006651,3.5955,139.04,139.03,7.64]
[1723751006849,1.2925,139.07,138.98,7.64]
[1723751007147,3.5954,139.05,138.98,7.64]
[1723751007541,1.2925,139.07,138.98,7.64]
[1723751007736,3.64941102,139.04,139.01,0.04872704]
[1723751007944,0.05361102,139.04,139.01,0.04872704]
[1723751008144,3.596,139.02,139.01,0.04872704]
[1723751008745,0.05361102,139.04,139.01,0.04872704]
[1723751009744,3.596,139.02,138.96,1.2836]
[1723751009953,3.596,139.02,138.9,41.3729]